Cogmind - Beta 16 @@@ ROGUE MODE // 2025.11.05 @ 23:18:19 Player: daxter767676 Result: Destroyed by ZS-5I5(R) with Subdweller Laser Performance ------------- Evolutions (0) 0 Regions Visited (2) 400 Robots Destroyed (5) 25 Value Destroyed (34) 34 Prototype IDs (0) 0 Alien Tech Used (0) 0 Bonus (0) 0 TOTAL SCORE: 459 Bonus ------- None Cogmind --------- Core Integrity 0/250 Matter 293/300 Energy 100/100 System Corruption 0% Temperature Cool (6) Movement Core (50) Location -10/Subcaves Parts ------- > --- POWER (1) -------- (None) > --- PROPULSION (2) --- (None) > --- UTILITY (2) ------ (None) > --- WEAPON (2) ------- (None) > --- INVENTORY (5) ---- Compact Wheel Compact Wheel Small Storage Unit Mining Laser Peak State ------------ > --- POWER ------------ Light Ion Engine > --- PROPULSION ------- Aluminum Leg Aluminum Leg > --- UTILITY ---------- Small Storage Unit Improved Terrain Scanner > --- WEAPON ----------- Light Assault Rifle Light Assault Rifle > --- INVENTORY -------- Ion Engine Light Treads Light Treads Compact Wheel Compact Wheel EM Pulse Gun [Rating: 9] Favorites ----------- Power Light Ion Engine Engine Light Ion Engine Propulsion Wheel Leg Aluminum Leg Wheel Wheel Utility Improved Terrain Scanner Device Improved Terrain Scanner Storage Small Storage Unit Weapon Light Assault Rifle Ballistic Gun Light Assault Rifle Build | -11 -10 -10 ------- Run | Yrd Mat Sub Slots Evolved . | . . . Power . | . . . Propulsion . | . . . Utility . | . . . Weapon . | . . . Parts Attached 5 | 4 . 1 Power 1 | . . 1 Engine 1 | . . 1 Core . | . . . Reactor . | . . . Propulsion 2 | 2 . . Treads . | . . . Leg . | . . . Wheel 2 | 2 . . Hover . | . . . Flight . | . . . Utility 2 | 2 . . Device 2 | 2 . . Storage . | . . . Processor . | . . . Hackware . | . . . Protection . | . . . Artifact . | . . . Weapon . | . . . Energy Gun . | . . . Energy Cannon . | . . . Ballistic Gun . | . . . Ballistic Cannon . | . . . Launcher . | . . . Special Weapon . | . . . Impact Weapon . | . . . Slashing Weapon . | . . . Piercing Weapon . | . . . Special Melee Weapon . | . . . Unidentified Prototypes . | . . . Parts Lost 8 | . . 8 Power 2 | . . 2 Propulsion 2 | . . 2 Utility 2 | . . 2 Weapon 2 | . . 2 Highest Loss Streak 8 | . . 8 To Critical Strikes . | . . . Average Backups 5 | 5 5 4 Power . | 1 1 . Propulsion 2 | 2 2 2 Utility . | . 1 1 Weapon 1 | 1 1 1 Tool/Special . | . . . Unused Backups 1 | . . 1 Power . | . . . Propulsion . | . . . Utility 1 | . . 1 Weapon . | . . . Tool/Special . | . . . Average Slot Usage (%) 79 | . 100 59 Engine 9 | . 14 5 Wheel 22 | . 28 16 Device 18 | . 28 8 Ballistic Gun 28 | . 28 28 Peak Build Rating 9 | 9 9 9 Average Rating 6 | 7 9 4 On Entrance 8 | 6 9 9 Avg Prop Armor Cover (%) . | . . . Naked Turns 3 | . . 3 Heaviest Build 10 | 10 7 7 Greatest Support 20 | 20 20 20 Greatest Overweight (x) . | . . . Average Overweight (x) . | . . . Largest Inventory Capacity 8 | 8 5 5 Average Capacity 5 | 5 5 5 Most Carried 6 | 6 5 5 Average Carried 5 | 5 5 4 Final Capacity 5 | 5 5 5 Final Carried 5 | 5 5 4 Class Distribution -------------------- 71% | Scavenger-Mutant 28% | Mutant Dominant Class ---------------- Scavenger-Mutant | -10/Materials Mutant | -10/Subcaves Resources | -11 -10 -10 ----------- Run | Yrd Mat Sub Matter Collected 268 | 268 . . Remotely . | . . . Salvage Created 146 | 146 . . Parts 13 | 13 . . Haulers Intercepted . | . . . Recyclers Shooed . | . . . Parts Field Recycled . | . . . Retrieved Matter . | . . . Parts Self-Destructed . | . . . Prevented . | . . . Parts Restored . | . . . Kills | -11 -10 -10 ------- Run | Yrd Mat Sub Combat Hostiles Destroyed . | . . . Classes Destroyed 2 | 2 . . Tunneler 4 | 4 . . Recycler 1 | 1 . . Best Kill Streak 3 | 3 . . Combat Bots Only . | . . . Max Kills in Single Turn 1 | 1 . . Gunslinging . | . . . Exploded . | . . . Melee . | . . . Uniques/NPCs Destroyed . | . . . Combat | -11 -10 -10 -------- Run | Yrd Mat Sub Hostile Shots Fired 36 | . . 36 Missed 3 | . . 3 Hits 33 | . . 33 Projectile 33 | . . 33 Damage Taken 680 | . . 680 Core 260 | . . 260 Absorbed by Shields . | . . . Core Remaining (%) 100 | 100 . . Volleys Fired 27 | 14 . 13 Largest 2 | 2 . 2 Hottest 40 | 40 . 40 Shots Fired 53 | 28 . 25 Gun 53 | 28 . 25 Cannon . | . . . Launcher . | . . . Special . | . . . Kinetic 53 | 28 . 25 Thermal . | . . . Explosive . | . . . Electromagnetic . | . . . Robot Hit Streak 9 | 9 . 8 Robot Miss Streak 2 | 2 . 1 Penetration Max . | . . . Secondary Targets . | . . . Shots Hit Robots 41 | 20 . 21 Core Hits 12 | 9 . 3 Critical Kills . | . . . Critical Parts Destroyed . | . . . Critical Strikes . | . . . Melee Attacks . | . . . Impact . | . . . Slashing . | . . . Piercing . | . . . Sneak Attacks . | . . . Combat Hostiles . | . . . Follow-up Attacks . | . . . Damage Inflicted 339 | 165 . 174 Guns 339 | 165 . 174 Cannons . | . . . Explosions . | . . . Melee . | . . . Ramming . | . . . Kinetic 339 | 165 . 174 Thermal . | . . . Explosive . | . . . Electromagnetic . | . . . Impact . | . . . Slashing . | . . . Piercing . | . . . Highest Corruption . | . . . Average Corruption . | . . . Corruption Purged . | . . . Corruption Blocked . | . . . Overload Shots . | . . . Overflow Damage . | . . . Projectiles . | . . . Explosions . | . . . Melee . | . . . Knockbacks . | . . . Impact . | . . . Kinetic . | . . . Secondary . | . . . Self-Inflicted Damage . | . . . Shots . | . . . Rammed . | . . . Targets Rammed . | . . . Kicked . | . . . Crushed . | . . . Highest Temperature . | . . . Average Temperature . | . . . Received Heat Transfer 60 | . . 60 Siege Activations . | . . . Martial Activations . | . . . Shielding Activations . | . . . Robots Disrupted . | . . . Combat Hostiles . | . . . Robots Corrupted . | . . . Combat Hostiles . | . . . Parts Fried . | . . . Impact Corruptions . | . . . Robots Melted . | . . . Combat Hostiles . | . . . Parts Melted . | . . . Heat Transferred . | . . . Parts Sabotaged . | . . . Parts Stolen . | . . . Parts Stripped . | . . . Power Chain Reactions . | . . . Alert | -11 -10 -10 ------- Run | Yrd Mat Sub Maximum Alert Level . | . . . Low Security (%) 100 | 100 100 . Level 1 . | . . . Level 2 . | . . . Level 3 . | . . . Level 4 . | . . . Level 5 . | . . . High Security . | . . . Max Security . | . . . Peak Influence 10 | 10 . . Initial . | . . . Average 1 | 2 . . Influence Increases 25 | 25 . . Destroy 0b10 Robot/NC 25 | 25 . . Influence Decreases 25 | 25 . . Time Decay 25 | 25 . . Squads Dispatched . | . . . Investigation . | . . . Extermination . | . . . Reinforcement . | . . . Assault . | . . . Garrison . | . . . Intercept . | . . . Searches Triggered . | . . . Construction Impeded . | . . . Haulers Reinforced . | . . . Active Scanning Responses . | . . . Cargo Convoy Interrupts . | . . . Stealth | -11 -10 -10 --------- Run | Yrd Mat Sub Distress Signals . | . . . Communications Jammed . | . . . Distress Signals . | . . . Times Spotted 4 | . . 4 Peak Tracking Total 4 | . . 4 Tactical Retreats . | . . . Traps | -11 -10 -10 ------- Run | Yrd Mat Sub Traps Triggered . | . . . Indirectly . | . . . Trap Hack Attempts . | . . . Triggered . | . . . Disarmed . | . . . Reprogrammed . | . . . Reused . | . . . Traps Extracted . | . . . Installed . | . . . Triggered . | . . . Machines | -11 -10 -10 ---------- Run | Yrd Mat Sub Machines Disabled . | . . . Max in Single Turn . | . . . Machines Repaired . | . . . Machines Dismantled . | . . . Machines Sabotaged . | . . . Overloaded Fab Kills . | . . . Hacking | -11 -10 -10 --------- Run | Yrd Mat Sub Machines Accessed . | . . . Terminals . | . . . Fabricators . | . . . Repair Stations . | . . . Recycling Units . | . . . Scanalyzers . | . . . Garrison Access . | . . . Total Hacks . | . . . Successful . | . . . Failed . | . . . Catastrophic . | . . . Database Lockouts . | . . . Manual . | . . . Terminals . | . . . Fabricators . | . . . Repair Stations . | . . . Recycling Units . | . . . Scanalyzers . | . . . Garrison Access . | . . . Terminal Hacks . | . . . Fabricator Hacks . | . . . Repair Station Hacks . | . . . Recycling Unit Hacks . | . . . Scanalyzer . | . . . Garrison Access Hacks . | . . . Unauthorized Hacks . | . . . Terminals . | . . . Fabricators . | . . . Repair Stations . | . . . Recycling Units . | . . . Scanalyzers . | . . . Garrison Access . | . . . Data Cores Recovered . | . . . Used . | . . . Hacking Detections . | . . . Full Trace Events . | . . . Feedback Events . | . . . Feedback Blocked . | . . . Robot Schematics Acquired . | . . . Robots Built . | . . . Authchips . | . . . Time . | . . . Total Robot Build Rating . | . . . Part Schematics Acquired . | . . . Parts Built . | . . . Authchips . | . . . Time . | . . . Total Part Build Rating . | . . . Part Studies Acquired . | . . . Parts Repaired . | . . . Time . | . . . Parts Recycled . | . . . Recycled Matter . | . . . Retrieved Matter . | . . . Retrieved Components . | . . . Parts Scanalyzed . | . . . Part Schematics Acquired . | . . . Parts Damaged . | . . . Bothacking | -11 -10 -10 ------------ Run | Yrd Mat Sub Used RIF Installer . | . . . Robots Hacked . | . . . Non-combat . | . . . Combat . | . . . Robot Hacks Applied . | . . . Relay Couplers Released . | . . . Fabnet Peak Effective % . | . . . Robots Rewired . | . . . Allies Hacked . | . . . Hacks Repelled . | . . . Allies | -11 -10 -10 -------- Run | Yrd Mat Sub Total Allies . | . . . Largest Group . | . . . Highest-Rated Group . | . . . Highest-Rated Ally . | . . . Total Orders . | . . . Ally Attacks . | . . . Total Damage . | . . . Kills . | . . . Allies Corrupted . | . . . Allies Melted . | . . . Intel | -11 -10 -10 ------- Run | Yrd Mat Sub Active Infowar (turns) 108 | 58 38 12 Terrain 102 | 58 38 6 Seismic 57 | 7 38 12 Robot Analysis Total . | . . . Derelict Logs Recovered . | . . . Drone Launches . | . . . Drone Recoveries . | . . . Exploration | -11 -10 -10 ------------- Run | Yrd Mat Sub Turns Passed 163 | 82 38 43 Spaces Moved 89 | 33 48 8 Core 1 | . . 1 Treads . | . . . Legs 8 | 8 . . Wheels 80 | 25 48 7 Hover . | . . . Flight . | . . . Fastest Speed 50 | 80 80 50 Average Speed 83 | 89 80 76 Slowest Speed 120 | 120 80 80 Overloaded Moves . | . . . Propulsion Burnouts . | . . . Robots Hopped . | . . . Potential Cave-ins . | . . . Cave-ins Triggered . | . . . Exploration Rate (%) 3 | 3 6 1 Regions Visited 2 Branch Regions 1 Pre-discovered Areas . | . . . Known Exits Taken . | . . . Unknown Exits Taken 2 | 1 1 . Scrap Searched . | . . . Spaces Dug . | . . . Terrain Destroyed . | . . . Melee . | . . . Projectile . | . . . AOE . | . . . Terrain Rammed . | . . . Walls Destroyed . | . . . Machines Disabled . | . . . Actions | -11 -10 -10 --------- Run | Yrd Mat Sub Total 134 | 63 47 24 Wait 8 | 6 . 2 Move 87 | 32 47 8 Hop . | . . . Pick Up 2 | 2 . . Fast Attach 4 | 4 . . Attach 1 | . . 1 Detach . | . . . Swap . | . . . Drop 5 | 5 . . Fire 27 | 14 . 13 Melee . | . . . Ram . | . . . Kick . | . . . Crush . | . . . Escape Stasis . | . . . Rewire . | . . . Trap . | . . . Miscellaneous . | . . . Route ------- -11/Scrapyard -10/Materials -10/Subcaves (discovered 1 exit: [*Mat]) History --------- Turn | Location | Event 9 | -11/Scrapyard | Discovered new exit (range 3) 83 | -11/Scrapyard | Entered Materials 119 | -10/Materials | Discovered new exit (range 5) 121 | -10/Materials | Entered Subcaves 122 | -10/Subcaves | Approached by a straggling Scientist 127 | -10/Subcaves | Discovered new exit (range 5) 152 | -10/Subcaves | Core integrity fell below 50% 163 | -10/Subcaves | Core integrity fell below 20% 164 | -10/Subcaves | Destroyed by ZS-5I5(R) with Subdweller Laser Last Messages --------------- 00113_ T-07 Excavator is excavating. 00119_ EXIT=FOUND LOCATION=UNKNOWN AMBIENT_HEAT=-10 GOAL=ESCAPE 00122_ YA-AEM(c): "Thank the algorithms! I was beginning to lose hope I'd never make it past all the Subs lurking out here." 00125_ YA-AEM(c): "Hey, let me tag along and I can get us both out of this nasty situation. At least I think I can... The group I got separated from was talking about a shortcut back to the UFD." 00127_ EXIT=FOUND 00127_ Imp. Terrain Scanner destroyed. 00129_ Lgt. Ion Engine destroyed. 00133_ Seismic Detector destroyed. 00137_ Wheel destroyed. 00155_ Ion Engine destroyed. 00158_ Wheel destroyed. 00160_ Lgt. Assault Rifle destroyed. Map ----- +----------------------------------------------------+ | ?????????????????????????????????????????????????? | | ?????????????????????????????????????????????????? | | ?????????????????????????????????????????????????? | | ?????????????????????????????????????????????????? | | ?????????????????????????????????????????????????? | | ?????????????????????????????????????????????????? | | ?????????????????????????????????????????????????? | | ?????????????????????????????????????????????????? | | ?????????????????????????????????????????????????? | | ?????????????????????????????????????????????????? | | ?????????????????????????????????????????????????? | | ?????????????????????????????????????????????????? | | ?????????????????????????????????????????????????? | | ?????????????????????????????????????????????????? | | ???????????????????????? ???????????????????????? | | ???????????????????????? ???????????????????????? | | ???????????????????????? ##?????????????????????? | | ????????????????????????"" ?????????????????????? | | ???????????????????????? #?????????????????????? | | ????????????????????????# #???#?????????????????? | | ????????????????????????# #?? #????? ???????????? | | ?????????????????????##? " ## ##?#?? ##?????????? | | ????????????????????## ## # # ## ???????? | | ????????????????????# R ? < ????????? | | ????????????????????# ##RR## ????????????? | | ???????????????????## # @ # #???????????????? | | ???????????????????# R #??????#????????????? | | ?????????????????#?# ###???????????????????? | | ???????????????????# ###?????????????????????? | | ???????????????????## ##????????#??????????????? | | ????????????????????#####????????????????????????? | | ?????????????????????????????????????????????????? | | ?????????????????????????????????????????????????? | | ?????????????????????????????????????????????????? | | ?????????????????????????????????????????????????? | | ?????????????????????????????????????????????????? | | ?????????????????????????????????????????????????? | | ?????????????????????????????????????????????????? | | ?????????????????????????????????????????????????? | | ?????????????????????????????????????????????????? | | ?????????????????????????????????????????????????? | | ?????????????????????????????????????????????????? | | ?????????????????????????????????????????????????? | | ?????????????????????????????????????????????????? | | ?????????????????????????????????????????????????? | | ?????????????????????????????????????????????????? | | | | | | | | | +----------------------------------------------------+ Best States ------------- Heat Dissipation 25 Energy Generation 10 Energy Capacity 250 Matter Stores 300 Matter Capacity 300 Sight Range 16 Terrain Scan Range 16 Terrain Scan Density 10 Evasion (%) 45 Item Schematics ----------------- None Robot Schematics ------------------ None Fabricated ------------ Nothing Repaired ---------- Nothing Studied --------- None Alien Tech Used ----------------- None Achievements -------------- None Challenges ------------ None Game ------ Seed FortressJunkFlightbrick Manual? 0 Play Time 00:03:47 Cumulative 158.5 hours Start 2025.11.05 @ 23:15:08 End 2025.11.05 @ 23:18:19 Sessions 1 Manual Loads 0 Difficulty Rogue Special Mode None Game No. 166 Rogue 164 Adventurer 2 Explorer 0 Win Type - Total 0 Types 0/0/0/0/0/0/0/0/0/0 Lore% 64 Gallery% 57 Achievement% 32 Wizard Run 0 Options --------- Layout 2 ASCII 0 Keyboard 1 Movement Vi Keybinds 0 Fullscreen 0 Font 42/SmallcapsGlow Map View 29x24 Zoom Use 100% Tactical HUD 1 Map Filters NONE Filters NONE Steam 1 RUN: e7245fe4-03f5-4261-8d31-eb57110b9b98